bitfinex-derivatives/quotes_ETHF0:USTF0_20250810
["timestamp","ask_amount","ask_price","bid_price","bid_amount"]
[1754842091855,1.533,4229.8,4229.7,0.6388]
[1754842093161,1.533,4229.8,4229.7,1.5548]
[1754842093364,1.533,4229.8,4229.7,0.6388]
[1754842093963,0.2573,4229.7,4229.4,0.47283]
[1754842094168,2.28514065,4229.5,4229.4,0.47284]
[1754842095158,2.28514065,4229.5,4228.3,0.47296]
[1754842095159,0.2605,4228.9,4228.3,0.47296]
[1754842095364,0.4275,4228.5,4228.4,2.02775]
[1754842095559,1.0986,4228.7,4228.6,1.09422]
[1754842095766,1.0986,4228.7,4228.6,2.02772]
[1754842096065,0.6848,4228.7,4228.6,2.02772]
[1754842096470,1.0986,4228.7,4228.6,2.02772]
[1754842096863,1.533,4228.7,4228.6,2.02772]
[1754842097566,0.75214065,4229.0,4228.2,1.2909]
[1754842097567,2.00596,4228.3,4228.2,1.2909]
[1754842097872,1.533,4228.0,4227.9,0.6388]
[1754842098073,0.9316,4228.5,4228.0,0.75179]
[1754842098363,2.00594,4228.5,4228.4,1.5548]
[1754842098563,2.00594,4228.5,4228.4,0.6388]
[1754842098770,2.00594,4228.5,4228.4,0.1874]
[1754842099163,2.00594,4228.5,4228.1,0.2788]
[1754842099360,0.6014,4228.3,4228.2,0.36]
[1754842099663,1.533,4228.3,4228.2,1.74897]
[1754842100060,1.533,4228.3,4228.2,2.02777]
[1754842103483,1.0986,4228.3,4228.2,2.02777]
[1754842103677,1.2725,4228.3,4228.2,2.02777]
[1754842104182,0.4275,4228.6,4228.5,2.02773]
[1754842104377,1.0986,4228.8,4228.7,2.02771]
[1754842105273,0.4275,4228.8,4228.7,2.02771]
[1754842105671,34.81114065,4229.7,4228.7,2.02771]
[1754842105672,0.4138,4230.7,4228.9,0.6547]
[1754842105877,0.2605,4230.9,4230.4,0.36]
[1754842105878,1.533,4230.5,4230.4,0.36]
[1754842106077,1.533,4230.5,4230.4,1.0296]
[1754842106878,1.533,4230.5,4230.4,1.5548]
[1754842107484,1.533,4231.1,4231.0,0.83266]
[1754842107784,1.533,4231.1,4231.0,2.02746]
[1754842107984,1.0986,4231.1,4231.0,2.02746]
[1754842108680,1.0986,4231.1,4230.7,0.2788]
[1754842108681,0.6014,4231.1,4230.7,0.2788]
[1754842108880,0.4275,4230.6,4230.5,0.64531]
[1754842109082,1.533,4230.6,4230.5,2.02751]
[1754842109280,1.533,4230.6,4230.5,1.76361]
[1754842110075,1.533,4230.6,4230.5,1.37281]
[1754842110280,1.533,4230.6,4230.5,1.76361]
[1754842110480,1.533,4230.6,4230.5,2.02751]
[1754842110787,1.533,4230.6,4230.5,1.76361]
[1754842111088,1.533,4230.6,4230.5,1.11151]
[1754842111285,0.47265,4231.1,4230.7,0.47268]
[1754842111483,1.2725,4230.8,4230.7,1.74868]
[1754842111688,1.533,4230.8,4230.7,1.74868]
[1754842111888,1.533,4230.8,4230.7,0.83268]
[1754842112093,1.533,4230.8,4230.7,1.11148]
[1754842112989,1.533,4230.8,4230.7,0.66008]
[1754842113586,1.533,4230.8,4230.7,0.93888]
[1754842114088,1.533,4230.8,4230.7,0.47268]
[1754842114384,1.533,4230.8,4230.7,1.37278]
[1754842114583,1.533,4230.8,4230.7,2.02748]
[1754842114785,1.533,4230.8,4230.7,1.76358]
[1754842115479,1.533,4230.8,4230.7,0.66008]
[1754842115782,1.533,4230.8,4230.4,0.5235]
[1754842115783,0.6014,4230.8,4230.4,0.2596]
[1754842115990,0.6365,4230.5,4230.4,0.47272]
[1754842116188,1.5562,4230.5,4230.4,0.47272]
[1754842116383,1.5562,4230.5,4230.4,0.73232]
[1754842116585,1.5562,4230.5,4230.4,1.10062]
[1754842119090,1.5562,4230.5,4230.4,0.47272]
[1754842119687,1.2945,4229.8,4229.7,0.4728]
[1754842119993,0.6365,4230.2,4230.1,1.77416]
[1754842120183,0.4526,4230.2,4230.1,2.03376]
[1754842120383,1.2945,4230.2,4230.1,2.03376]
[1754842120583,1.5562,4230.2,4230.1,2.03376]
[1754842121678,0.47269,4230.8,4230.0,1.18192]
[1754842121884,0.4526,4230.1,4230.0,1.561]
[1754842122088,1.1106,4230.1,4230.0,1.561]
[1754842122387,1.2945,4230.1,4230.0,2.03377]
[1754842122587,1.5562,4230.1,4230.0,0.84107]
[1754842122783,1.5562,4230.6,4230.5,0.84101]
[1754842122988,1.5562,4230.6,4230.5,2.03371]
[1754842123187,1.1106,4230.6,4230.5,2.03371]
[1754842123490,0.2777,4230.6,4230.5,2.03371]
[1754842123691,0.1839,4231.1,4231.0,1.2989]
[1754842123891,1.5562,4231.1,4231.0,1.561]
[1754842124479,1.5562,4231.1,4231.0,1.10056]
[1754842124680,1.2749,4231.5,4231.4,0.6279]
[1754842124889,1.9982,4231.5,4231.4,1.2914]
[1754842125088,1.9982,4231.5,4231.4,0.6279]
[1754842125488,2.6562,4231.5,4231.4,0.6279]
[1754842125784,1.1,4231.5,4231.4,1.561]
[1754842125984,2.2106,4231.5,4231.4,1.561]
[1754842126391,2.3945,4231.5,4231.4,1.561]
[1754842126586,2.6562,4231.5,4231.4,1.561]
[1754842127093,2.2106,4231.5,4231.4,1.561]
[1754842127295,2.3945,4231.5,4231.4,1.561]
[1754842127791,1.1,4231.5,4231.4,1.561]
[1754842128388,1.5526,4231.5,4231.4,1.561]
[1754842128790,1.1,4231.5,4231.4,1.561]
[1754842130095,2.2106,4231.5,4231.4,1.561]
[1754842130295,2.6562,4231.5,4231.4,1.561]
[1754842130587,3.1288,4231.5,4231.4,0.4465]
[1754842130792,2.02881,4231.4,4231.3,0.2596]
[1754842131188,1.1,4231.5,4230.9,0.2596]
[1754842131189,0.9197,4231.0,4230.9,0.2596]
[1754842131384,1.5562,4230.9,4230.8,0.84097]
[1754842131587,1.5562,4230.9,4230.8,0.6279]
[1754842132289,2.02887,4230.9,4230.8,0.6279]
[1754842132494,1.5562,4230.7,4230.6,0.841]
[1754842132792,1.5562,4230.7,4230.6,1.1006]
[1754842133090,0.6365,4230.7,4230.5,0.73231]
[1754842133393,1.5562,4230.6,4230.5,1.10061]
[1754842134190,1.5562,4230.6,4230.5,1.76411]
[1754842134391,1.5562,4230.6,4230.5,2.03371]
[1754842134791,1.2945,4230.6,4230.5,2.03371]
[1754842134987,1.2945,4230.6,4230.5,0.4465]
[1754842134988,1.5562,4230.6,4230.5,0.4465]
[1754842135397,1.5562,4230.6,4230.5,0.6279]
[1754842135601,1.5562,4230.6,4230.5,1.2914]
[1754842135893,1.5562,4230.6,4230.5,0.89]
[1754842136092,1.18157,4231.3,4229.6,0.9306]
[1754842136093,1.18169,4230.9,4229.6,0.9306]
[1754842136291,1.18169,4230.9,4229.9,1.10318]
[1754842136292,0.6365,4230.0,4229.9,1.10318]
[1754842136496,1.5562,4230.0,4229.9,2.03378]
[1754842136689,0.4526,4230.0,4229.9,2.03378]
[1754842136993,0.2777,4230.0,4229.9,2.03378]
[1754842137196,0.8496,4230.4,4230.3,0.6304]
[1754842137494,1.5562,4230.4,4230.3,1.561]
[1754842137701,2.02888,4230.8,4230.7,1.561]
[1754842137996,0.4526,4230.8,4230.7,1.561]
[1754842138297,1.5562,4230.8,4230.7,1.561]
[1754842138692,1.5562,4230.8,4230.7,0.6279]
[1754842138891,1.5562,4230.8,4230.7,0.1869]
[1754842139497,1.5562,4230.8,4230.7,0.4465]
[1754842139699,1.5562,4230.8,4230.7,1.561]
[1754842140593,0.47269,4230.7,4230.4,0.47272]
[1754842140797,24.23053777,4231.8,4230.4,0.6279]
[1754842140798,2.02891,4230.5,4230.4,0.6279]
[1754842140998,1.5562,4230.5,4230.4,0.6279]
[1754842141396,0.4526,4229.8,4229.7,1.3628]
[1754842141590,0.8975,4230.6,4230.5,0.65411]
[1754842141790,0.73437,4230.9,4230.7,0.91618]
[1754842141791,1.1106,4230.8,4230.7,0.91618]
[1754842141998,0.4526,4230.8,4230.7,2.03368]
[1754842142194,0.658,4231.1,4230.7,2.03368]
[1754842142195,1.1106,4231.1,4231.0,1.10306]
[1754842142498,1.1106,4231.1,4231.0,2.03366]
[1754842142699,1.2945,4231.1,4231.0,2.03366]
[1754842143199,1.1106,4231.1,4231.0,0.6279]
[1754842143398,0.6365,4230.8,4230.7,0.91918]
[1754842143596,1.5562,4230.8,4230.7,0.65958]
[1754842144001,1.5562,4230.8,4230.7,0.1869]
[1754842144201,0.6365,4230.6,4230.5,0.73231]
[1754842144390,1.5562,4230.6,4230.5,2.03371]
[1754842144595,1.1106,4230.6,4230.5,2.03371]
[1754842144893,1.5562,4230.6,4230.5,1.76411]
[1754842145293,1.5562,4230.6,4230.5,1.10061]
[1754842146291,1.5562,4230.6,4230.5,2.03251]
[1754842146490,1.2945,4230.6,4230.5,2.03251]
[1754842147301,1.5749,4230.6,4230.5,2.03251]
[1754842148497,0.9099,4230.8,4230.7,0.81499]
[1754842148701,1.6028,4230.8,4230.7,1.0133]
[1754842148903,1.6028,4230.8,4230.7,0.6137]
[1754842149701,1.6028,4230.8,4230.7,0.444]
[1754842151303,1.18172,4230.8,4229.7,0.2714]
[1754842151597,1.3224,4229.8,4229.7,2.0278]
[1754842152200,1.6028,4229.8,4229.7,2.0278]
[1754842153203,1.6028,4229.8,4229.7,1.358]
[1754842153503,1.6028,4229.8,4229.7,2.0278]
[1754842154598,1.6028,4229.8,4229.7,1.0865]
[1754842154799,1.6028,4229.8,4229.6,0.47281]
[1754842154998,1.6028,4229.8,4229.7,0.6137]
[1754842155205,1.3224,4229.8,4229.7,1.555]
[1754842155893,1.6028,4229.8,4229.7,0.1697]
[1754842156094,1.1415,4229.7,4229.6,0.1697]
[1754842156299,1.3224,4229.7,4229.6,0.6137]
[1754842156704,1.3224,4229.7,4229.6,1.0133]
[1754842157005,0.9668,4229.6,4229.1,0.74426]
[1754842157206,0.636,4229.9,4229.8,0.6137]
[1754842157504,0.4551,4229.9,4229.8,1.555]
[1754842157803,1.1415,4229.9,4229.8,1.555]
[1754842158004,2.07558,4229.9,4229.8,1.2848]
[1754842158195,1.6028,4229.9,4229.8,0.6137]
[1754842158908,1.0485,4229.7,4229.6,0.1697]
[1754842159106,1.6028,4229.7,4229.6,0.1697]
[1754842159308,1.6028,4229.7,4229.6,0.6137]
[1754842159608,1.6028,4229.7,4229.6,1.555]
[1754842162105,1.3224,4229.7,4229.6,1.1554]
[1754842162303,0.636,4229.7,4229.5,0.47281]
[1754842162504,1.6028,4229.6,4229.5,0.47281]
[1754842162902,1.6028,4229.6,4229.5,0.74421]
[1754842163099,1.6028,4229.6,4229.5,0.91681]
[1754842163307,1.6028,4229.6,4229.5,1.08651]
[1754842163803,1.6028,4229.6,4229.5,1.48611]
[1754842164007,1.6028,4229.6,4229.5,1.75761]
[1754842164305,1.6028,4229.6,4229.5,2.02781]
[1754842164810,2.07561,4229.6,4229.5,2.02781]
[1754842165010,1.6028,4229.6,4229.5,2.02781]
[1754842165208,1.6028,4229.6,4229.5,1.75761]
[1754842165408,1.6028,4229.6,4229.5,1.35801]
[1754842165709,1.6028,4229.6,4229.5,1.08651]
[1754842165906,1.6028,4229.6,4229.5,1.48611]
[1754842166408,1.6028,4229.6,4229.5,1.75761]
[1754842166710,1.6028,4229.6,4229.5,2.02781]
[1754842167100,0.636,4229.6,4228.8,0.2714]
[1754842167305,0.636,4229.4,4229.3,0.47284]
[1754842167510,1.6028,4229.4,4229.3,0.91684]
[1754842167803,1.6028,4229.4,4229.3,2.02784]
[1754842168008,1.3224,4229.4,4229.3,2.02784]
[1754842168507,1.1415,4229.4,4229.3,2.02784]
[1754842168897,1.3224,4229.4,4229.3,2.02784]
[1754842169101,1.6028,4229.4,4229.3,2.02784]
[1754842170006,1.3224,4229.4,4229.3,2.02784]
[1754842170310,0.4551,4229.4,4229.3,2.02784]
[1754842170511,0.4551,4229.4,4229.3,0.47284]
[1754842170708,1.6028,4229.4,4229.3,0.47284]
[1754842171111,7.43809007,4229.4,4227.7,5.02864707]
[1754842171305,1.18202,4229.7,4228.7,1.2848]
[1754842171306,0.729,4228.8,4228.7,1.2848]
[1754842171511,1.1415,4229.2,4229.1,0.4412]
[1754842171808,1.1415,4229.2,4229.1,0.6138]
[1754842172201,1.1415,4229.2,4229.1,1.555]
[1754842172406,1.3224,4229.2,4229.1,1.555]
[1754842172608,1.6028,4229.2,4229.1,1.555]
[1754842173409,0.47291,4228.8,4228.0,1.18247]
[1754842173608,1.6028,4228.8,4228.7,1.555]
[1754842173813,1.1415,4228.8,4228.7,1.555]
[1754842174111,0.4551,4228.8,4228.7,1.555]
[1754842174906,1.1415,4229.1,4229.0,0.6138]
[1754842175208,0.4729,4228.9,4228.6,0.47291]
[1754842175513,2.0757,4228.9,4228.8,1.555]
[1754842175701,1.6028,4228.9,4228.8,2.0279]
[1754842176115,1.6028,4228.9,4228.8,1.555]
[1754842177016,1.5748,4228.5,4228.4,1.59]
[1754842177508,1.3014,4228.5,4228.4,1.59]
[1754842177815,1.125,4228.9,4228.8,0.6408]
[1754842178116,1.3014,4228.9,4228.8,0.6408]
[1754842178310,1.5748,4228.9,4228.8,1.59]
[1754842180816,1.5748,4228.9,4228.8,1.3103]
[1754842181012,0.7065,4228.9,4228.8,1.59]
[1754842181212,0.47292,4228.6,4228.0,0.3983]
[1754842181413,0.6267,4228.5,4228.4,0.1812]
[1754842181715,1.09964,4228.5,4228.4,0.636]
[1754842181911,1.51814,4228.5,4228.4,0.636]
[1754842182114,2.04774,4228.5,4228.4,0.636]
[1754842182712,1.5748,4228.5,4228.4,0.636]
[1754842183414,7.00789007,4228.5,4227.1,2.12764707]
[1754842183617,2.36464,4228.7,4226.8,0.678]
[1754842183618,0.4503,4227.0,4226.8,0.678]
[1754842183912,1.18255,4227.8,4226.4,2.12764707]
[1754842183913,0.6267,4226.5,4226.4,0.83796]
[1754842184119,1.5748,4226.5,4226.4,1.51226]
[1754842184317,1.125,4226.5,4226.4,2.06316]
[1754842184515,0.4503,4226.8,4226.7,0.93273]
[1754842184715,1.3014,4226.8,4226.7,1.59]
[1754842185015,0.92335,4227.5,4227.4,0.7369]
[1754842185316,1.125,4227.5,4227.4,1.59]
[1754842185513,1.3014,4227.8,4227.7,1.59]
[1754842186213,1.3014,4228.1,4228.0,1.59]
[1754842186408,1.5748,4228.1,4228.0,1.59]
[1754842186611,1.5748,4228.1,4228.0,0.636]
[1754842186811,1.5748,4228.1,4228.0,0.1812]
[1754842187314,0.9481,4228.0,4227.8,0.74421]
[1754842187512,0.6267,4227.9,4227.8,1.10901]
[1754842187713,1.5748,4227.9,4227.8,2.06301]
[1754842188120,1.125,4228.1,4228.0,0.6408]
[1754842188316,0.47299,4228.0,4227.7,0.3983]
[1754842188524,1.7506973,4228.7,4227.4,0.2712]
[1754842188525,0.6267,4227.5,4227.4,0.2712]
[1754842188815,1.3014,4227.2,4227.1,2.06309]
[1754842189216,0.2734,4227.5,4227.4,2.06306]
[1754842189217,0.8688,4227.5,4227.4,2.06306]
[1754842189428,1.3014,4228.2,4228.1,0.9205]
[1754842189614,1.3014,4228.2,4228.1,1.59]
[1754842189814,1.5748,4228.2,4228.1,1.59]
[1754842190114,0.47295,4228.4,4228.1,1.59]
[1754842190321,1.5748,4228.2,4228.1,0.6408]
[1754842190815,1.5748,4228.2,4228.1,1.3103]
[1754842191119,1.3014,4228.2,4228.1,1.59]
[1754842191622,1.51815,4228.4,4228.3,1.59]
[1754842192017,2.04775,4228.4,4228.3,1.59]
[1754842192422,1.5748,4228.4,4228.3,1.59]
[1754842192618,1.5748,4228.4,4226.3,2.47243385]
[1754842192619,35.484,4228.8,4228.7,1.3103]
[1754842192823,34.7377,4228.8,4228.7,1.59]
[1754842193216,35.0111,4228.8,4228.7,1.59]
[1754842193824,35.0111,4228.8,4228.7,2.06291]
[1754842194219,34.7377,4228.8,4228.7,2.06291]
[1754842194623,1.3014,4229.1,4229.0,1.78318]
[1754842194816,0.56756471,4229.9,4229.0,2.06288]
[1754842195024,0.56756471,4229.9,4228.5,1.18234]
[1754842195025,0.56756471,4229.9,4229.8,1.59]
[1754842195325,0.9799,4230.2,4230.1,0.6408]
[1754842195526,0.4503,4230.2,4230.1,1.59]
[1754842196028,1.3014,4230.2,4230.1,1.59]
[1754842196324,1.00236,4230.1,4229.7,0.4524]
[1754842196524,1.5748,4229.8,4229.7,2.0628]
[1754842196822,0.4503,4229.8,4229.7,2.0628]
[1754842197221,1.3045,4229.7,4229.6,0.3648]
[1754842197421,1.5748,4229.7,4229.6,0.636]
[1754842197923,1.5748,4229.7,4229.6,1.59]
[1754842198118,1.5748,4229.7,4229.6,1.3103]
[1754842198518,1.5748,4229.7,4229.6,1.59]
[1754842198720,1.125,4230.1,4230.0,1.59]
[1754842199027,1.3014,4230.1,4230.0,1.59]
[1754842199429,1.5748,4230.1,4230.0,1.59]
[1754842199930,1.5748,4230.1,4230.0,2.06277]
[1754842200125,0.4503,4230.1,4230.0,2.06277]
[1754842200432,1.3014,4230.3,4230.2,1.59]
[1754842200629,1.5748,4230.3,4230.2,1.59]
[1754842200930,1.5748,4230.3,4230.2,1.3103]
[1754842201430,1.5748,4230.3,4230.2,0.636]
[1754842201923,1.5748,4230.3,4229.9,0.2797]
[1754842201924,1.5748,4230.3,4229.9,1.02367]
[1754842202128,1.5748,4229.8,4229.7,1.1088]
[1754842202328,0.6267,4230.0,4229.9,1.11358]
[1754842202527,0.6267,4230.0,4229.9,0.636]
[1754842202528,1.5748,4230.0,4229.9,0.636]
[1754842202831,1.3014,4230.0,4229.9,1.59]
[1754842203129,1.5748,4230.0,4229.9,1.59]
[1754842203530,0.47279,4229.9,4229.5,0.47282]
[1754842203827,0.47279,4229.9,4229.5,1.79162]
[1754842203828,1.5748,4229.6,4229.5,1.79162]
[1754842204229,1.5748,4229.6,4229.5,1.59]
[1754842207436,0.4418,4229.9,4229.8,1.5861]
[1754842207632,1.57605,4230.2,4230.1,0.6384]
[1754842207830,2.00185,4230.2,4230.1,1.5861]
[1754842208031,2.00185,4230.2,4230.1,0.9055]
[1754842208339,2.00185,4230.2,4230.1,0.4548]
[1754842208535,1.5291,4229.4,4229.3,0.4548]
[1754842208830,1.18201,4229.8,4227.2,5.3441059]
[1754842208831,1.5291,4229.2,4229.1,0.6253]
[1754842209239,21.776,4229.6,4228.7,2.059]
[1754842209240,1.2724,4228.8,4228.7,2.059]
[1754842209529,1.74526,4229.2,4229.1,1.319]
[1754842209729,1.5291,4229.2,4229.1,1.5861]
[1754842212436,1.1033,4229.2,4229.1,1.5861]
[1754842212635,0.7126,4229.2,4229.1,1.5861]
[1754842212831,1.1033,4229.2,4229.1,1.5861]
[1754842213034,1.2724,4229.2,4229.1,1.5861]
[1754842213837,1.5291,4229.2,4229.1,1.5861]
[1754842214332,1.57615,4229.3,4229.2,1.5856]
[1754842215026,1.2724,4229.3,4229.2,1.5856]
[1754842215329,1.5291,4229.3,4229.2,1.5856]
[1754842218241,21.776,4229.6,4229.3,0.2671]
[1754842218441,1.5291,4229.5,4229.4,0.6384]
[1754842219038,1.5291,4229.5,4229.4,1.3068]
[1754842219739,1.5291,4229.5,4229.4,1.5856]
[1754842220037,1.2724,4229.5,4229.4,1.5856]
[1754842220435,1.18191,4230.1,4229.4,1.5856]
[1754842220436,1.92959777,4230.6,4229.4,1.03069523]
[1754842220642,0.4418,4230.7,4230.6,1.5856]
[1754842220837,0.8676,4230.7,4230.6,0.6253]
[1754842221342,1.5291,4230.7,4230.6,1.5856]
[1754842221739,21.777,4230.9,4229.8,0.6253]
[1754842221740,0.4418,4229.9,4229.8,0.6253]
[1754842221938,1.1384,4229.9,4229.8,1.5856]
[1754842222138,1.2724,4229.9,4229.8,2.05839]
[1754842222441,0.4418,4229.9,4229.8,2.05839]
[1754842222641,0.2635,4229.9,4229.8,2.05839]
[1754842223838,1.5291,4229.9,4229.8,2.05839]
[1754842224236,1.5291,4229.9,4229.8,0.47279]
[1754842224646,0.6109,4229.3,4229.2,0.6384]
[1754842224841,1.1033,4229.7,4229.6,1.11121]
[1754842225048,1.1033,4229.7,4229.6,2.05841]
[1754842225643,1.2724,4229.7,4229.6,2.05841]
[1754842225845,1.5291,4229.7,4229.6,2.05841]
[1754842226041,0.6109,4229.7,4229.5,0.47282]
[1754842226242,1.5291,4229.6,4229.5,0.47282]
[1754842226438,1.5291,4229.6,4229.5,2.05842]
[1754842226847,1.5291,4229.6,4229.5,1.77962]
[1754842228244,1.5291,4229.6,4229.5,1.37832]
[1754842228450,1.5291,4229.6,4229.5,0.83102]
[1754842228753,1.5291,4229.6,4229.5,1.09812]
[1754842229639,1.5291,4229.6,4229.5,1.77912]
[1754842231151,1.5291,4229.6,4229.5,1.37832]
[1754842231343,1.5291,4229.6,4229.5,1.77912]
[1754842232145,1.5291,4229.6,4229.5,2.05792]
[1754842232842,0.47284,4229.4,4229.1,0.47287]
[1754842233049,0.6109,4228.6,4228.5,0.83114]
[1754842233345,1.5291,4228.6,4228.5,1.09824]
[1754842233546,1.5291,4228.6,4228.5,0.47294]
[1754842233849,1.08383,4228.6,4228.2,0.6679]
[1754842234046,1.0016,4228.0,4227.9,0.6253]
[1754842234245,1.0016,4228.0,4227.9,1.5851]
[1754842234656,1.2724,4228.0,4227.9,1.5851]
[1754842235054,1.5291,4228.0,4227.9,1.5851]
[1754842235751,1.5816,4227.8,4227.7,0.6082]
[1754842235951,0.6364,4227.5,4227.4,1.0181]
[1754842236250,2.05465,4227.5,4227.4,0.6082]
[1754842236454,0.6364,4227.3,4227.2,1.08128]
[1754842236755,1.121,4227.3,4227.2,2.00978]
[1754842237058,1.3048,4227.6,4227.5,1.35394]
[1754842237553,1.3048,4227.6,4227.5,2.00974]
[1754842238058,1.5816,4227.6,4227.5,2.00974]
[1754842238258,1.5816,4228.0,4227.9,2.0097]
[1754842238860,1.3048,4228.0,4227.9,2.0097]
[1754842239251,1.3048,4228.0,4227.9,1.5367]
[1754842239451,1.5816,4228.0,4227.9,1.5367]
[1754842239856,1.5816,4228.0,4227.9,0.8706]
[1754842240060,1.5816,4228.0,4227.9,0.6082]
[1754842240256,1.5816,4228.0,4227.9,0.1736]
[1754842240451,1.5816,4228.0,4227.9,1.5367]
[1754842240654,22.24997,4228.2,3301.0,1.0]
[1754842240655,1.129,4227.4,4227.3,0.90287]
[1754842240862,1.5816,4227.4,4227.3,0.90287]
[1754842241166,1.5816,4227.4,4227.3,1.74737]
[1754842241368,0.9452,4228.1,4227.1,1.18273]
[1754842241556,23.3596,4228.1,4228.0,0.6082]
[1754842242465,0.4526,4228.1,4228.0,1.5367]
[1754842242654,1.3048,4228.1,4228.0,1.2743]
[1754842242858,1.3048,4228.1,4227.9,0.473]
[1754842242859,1.5816,4228.0,4227.9,0.473]
[1754842243165,1.5816,4228.0,4227.9,0.7292]
[1754842243366,1.5816,4228.0,4227.9,0.9028]
[1754842243568,1.5816,4228.0,4227.9,1.0812]
[1754842244067,1.5816,4228.0,4227.9,2.0097]
[1754842244465,1.3048,4228.0,4227.9,2.0097]
[1754842244857,22.64943,4228.6,4228.2,0.47297]
[1754842245058,1.121,4228.3,4228.2,2.00967]
[1754842245259,0.6684,4228.9,4228.5,0.6185]
[1754842245569,1.3048,4229.0,4228.9,2.00958]
[1754842245764,1.121,4229.0,4228.9,2.00958]
[1754842246162,0.4526,4229.0,4228.9,2.00958]
[1754842246467,0.2697,4229.0,4228.9,2.00958]
[1754842246667,1.3048,4229.0,4228.9,2.00958]
[1754842247869,1.5816,4229.0,4228.9,2.00958]
[1754842248266,1.5816,4229.0,4228.9,1.74718]
[1754842248670,1.5816,4229.0,4228.9,1.34758]
[1754842249368,1.5816,4229.0,4228.9,1.08108]
[1754842249670,1.5816,4229.0,4228.9,1.48068]
[1754842249869,1.5816,4229.0,4228.9,1.74718]
[1754842250870,1.5816,4229.0,4228.9,2.00958]
[1754842251068,1.3048,4229.0,4228.9,2.00958]
[1754842251271,1.5816,4229.0,4228.9,1.34758]
[1754842251463,1.5816,4229.0,4228.9,0.64648]
[1754842251859,1.121,4229.4,4229.3,2.00955]
[1754842252072,22.2296,4229.4,4229.3,1.5367]
[1754842252273,23.0818,4229.4,4229.3,1.5367]
[1754842252466,23.3586,4229.4,4229.3,1.2743]
[1754842253266,23.3586,4229.4,4229.3,1.5367]
[1754842253469,23.3586,4229.4,4229.3,1.2743]
[1754842254671,22.88623,4229.4,4228.6,0.2624]
[1754842254864,0.4526,4228.7,4228.6,1.61002]
[1754842255374,0.4526,4228.7,4228.6,2.00962]
[1754842255873,1.5816,4228.7,4228.6,2.00962]
[1754842256074,1.5816,4228.7,4228.6,1.08112]
[1754842256773,1.5816,4228.7,4228.6,0.1784]
[1754842257074,1.5816,4228.3,4228.2,1.74726]
[1754842257273,23.0798,4228.3,4228.2,2.00966]
[1754842260373,23.0798,4228.3,4227.5,1.18262]
[1754842260374,0.6684,4229.3,4226.9,5.02864707]
[1754842260579,1.10929,4228.9,4228.8,1.09139]
[1754842260780,1.5816,4228.5,4228.4,0.352]
[1754842261077,1.5816,4228.5,4228.4,0.1736]
[1754842261078,23.3556,4228.5,4228.4,0.1736]
[1754842262177,22.4104,4228.5,4228.3,0.47295]
[1754842262480,1.5816,4228.4,4228.3,1.74725]
[1754842262684,1.5816,4228.4,4228.3,2.00965]
[1754842263483,21.774,4228.5,4228.3,1.09145]
[1754842263677,21.774,4228.5,4228.4,1.5367]
[1754842263875,22.895,4228.5,4228.4,1.5367]
[1754842264281,1.5816,4228.9,4228.8,2.0096]
[1754842264580,23.3556,4228.9,4228.8,2.0096]
[1754842270283,23.0788,4228.9,4228.8,2.0096]
[1754842270583,23.3371,4228.9,4228.8,2.0096]
[1754842271383,23.0788,4228.9,4228.8,2.0096]
[1754842271582,23.3371,4228.9,4228.8,0.9145]
[1754842271780,23.3371,4228.9,4228.8,2.023]
[1754842274083,1.5631,4228.9,4228.8,2.023]
[1754842274284,23.3351,4228.9,4228.8,2.023]
[1754842274502,1.5631,4228.9,4228.8,2.023]
[1754842274786,23.3351,4228.9,4228.8,2.023]
[1754842275183,23.90467675,4228.9,4228.8,2.023]
[1754842276588,23.90467675,4228.9,4228.8,1.7445]
[1754842276790,23.90467675,4228.9,4228.8,1.3434]
[1754842276989,23.90467675,4228.9,4228.8,1.0897]
[1754842277982,2.13267675,4228.9,4228.8,1.0897]
[1754842278182,23.3341,4228.9,4228.8,1.0897]
[1754842278383,23.90367675,4228.9,4228.8,1.0492]
[1754842278583,23.90367675,4228.9,4228.8,0.9161]
[1754842278791,2.13267675,4228.9,4228.8,2.0209]
[1754842278989,23.3341,4228.9,4228.8,2.0209]
[1754842279191,23.90367675,4228.9,4228.8,2.0209]
[1754842280691,0.75207568,4229.3,4229.2,0.47286]
[1754842280692,0.6546,4229.3,4229.2,0.47286]
[1754842280891,22.8706,4229.3,4229.2,2.02086]
[1754842281096,23.61020306,4229.3,4229.2,2.02086]
[1754842281298,23.86850306,4229.3,4229.2,2.02086]
[1754842281493,24.34135306,4229.3,4228.9,0.268]
[1754842281698,0.6159,4229.0,4228.9,0.91239]
[1754842281996,23.2978,4229.0,4228.9,1.08759]
[1754842282198,23.86750306,4229.0,4228.9,1.08759]
[1754842283099,23.8675867,4229.0,4228.9,1.08759]
[1754842283702,23.8675867,4229.0,4228.9,1.48869]
[1754842285792,23.8675867,4229.0,4228.9,0.6147]
[1754842285996,23.8675867,4229.0,4228.9,0.4395]
[1754842286696,23.8675867,4229.0,4228.9,0.6147]
[1754842287201,23.8675867,4229.0,4228.9,0.4395]
[1754842288304,1.5288,4228.7,4228.5,0.47293]
[1754842288599,24.04687568,4228.6,4228.5,0.47293]